bitfinex/quotes_BTCUSD_20250526
["timestamp","ask_amount","ask_price","bid_price","bid_amount"]
[1748243628289,0.4555819,109870.0,109860.0,0.5731537]
[1748243628519,0.4555819,109870.0,109860.0,0.50738525]
[1748243628745,0.54299023,109870.0,109860.0,0.50738525]
[1748243628986,0.92466323,109870.0,109860.0,0.50738525]
[1748243629206,0.9155619,109870.0,109860.0,0.50738525]
[1748243629661,0.93376464,109870.0,109860.0,0.50738525]
[1748243630106,0.84635631,109870.0,109860.0,0.50738525]
[1748243630327,0.84635631,109870.0,109860.0,0.44338575]
[1748243630550,0.83725589,109870.0,109860.0,0.45248782]
[1748243630783,0.46468364,109870.0,109860.0,0.53646017]
[1748243631003,0.47378513,109870.0,109860.0,0.50259172]
[1748243631262,1.02239103,109870.0,109860.0,0.46618359]
[1748243631500,1.41550681,109870.0,109860.0,0.37057817]
[1748243631727,1.50305484,109870.0,109860.0,0.37057817]
[1748243631950,1.88597469,109870.0,109860.0,0.37057817]
[1748243632168,1.89282155,109870.0,109860.0,0.37057817]
[1748243632598,1.89282155,109870.0,109860.0,0.36757817]
[1748243632803,1.89282155,109870.0,109860.0,0.36457817]
[1748243633010,1.88597469,109870.0,109860.0,0.36457817]
[1748243633207,1.8751695,109870.0,109860.0,0.36457817]
[1748243633409,1.14822848,109870.0,109860.0,0.36457817]
[1748243633610,1.8751695,109870.0,109860.0,0.36457817]
[1748243633816,1.21663108,109870.0,109860.0,0.36457817]
[1748243634032,1.9435721,109870.0,109860.0,0.36457817]
[1748243634204,1.9435721,109870.0,109860.0,0.31914871]
[1748243634451,1.9435721,109870.0,109860.0,0.27371925]
[1748243634681,1.9435721,109870.0,109860.0,0.25895925]
[1748243634919,1.92971869,109870.0,109860.0,0.25895925]
[1748243635404,1.95701269,109870.0,109860.0,0.25895925]
[1748243637288,1.18458067,109870.0,109860.0,0.25895925]
[1748243637482,1.83126067,109870.0,109860.0,0.25895925]
[1748243637707,1.51174067,109870.0,109860.0,0.25895925]
[1748243637921,1.83126067,109870.0,109860.0,0.25895925]
[1748243638141,1.47764369,109870.0,109860.0,0.25895925]
[1748243638361,1.8411142,109870.0,109860.0,0.25895925]
[1748243638549,1.5215942,109870.0,109860.0,0.22547417]
[1748243638764,1.84796106,109870.0,109860.0,0.22547417]
[1748243639632,1.79934548,109870.0,109860.0,0.22547417]
[1748243639852,1.47982548,109870.0,109860.0,0.22547417]
[1748243640105,2.25918436,109870.0,109860.0,0.22547417]
[1748243640322,2.25918436,109870.0,109860.0,0.20416765]
[1748243642380,2.30095308,109870.0,109860.0,0.20416765]
[1748243643028,2.30095308,109870.0,109860.0,0.17677258]
[1748243644692,1.98143308,109870.0,109860.0,0.17677258]
[1748243644915,2.30095308,109870.0,109860.0,0.17677258]
[1748243645432,1.57401206,109870.0,109860.0,0.17677258]
[1748243645642,2.21143157,109870.0,109860.0,0.17677258]
[1748243646807,2.16966285,109870.0,109860.0,0.17677258]
[1748243647498,2.16966285,109870.0,109860.0,0.13415585]
[1748243647728,2.16281599,109870.0,109860.0,0.1213432]
[1748243647994,2.2523375,109870.0,109860.0,0.1213432]
[1748243648218,2.2523375,109870.0,109860.0,0.08861785]
[1748243649687,2.2523375,109870.0,109860.0,0.08134667]
[1748243649688,2.30364815,109870.0,109860.0,0.08134667]
[1748243650152,2.30364815,109870.0,109860.0,0.0657907]
[1748243650400,2.30364815,109870.0,109860.0,0.02236407]
[1748243650620,2.30364815,109870.0,109850.0,0.47864147]
[1748243650621,0.60879305,109860.0,109850.0,0.47864147]
[1748243650842,1.53803599,109860.0,109850.0,0.47914055]
[1748243651508,1.9015065,109860.0,109850.0,0.47914055]
[1748243651741,1.9015065,109860.0,109850.0,0.09086906]
[1748243651742,1.9471065,109860.0,109850.0,0.09086906]
[1748243651945,1.95775065,109860.0,109850.0,0.09086906]
[1748243652153,1.95775065,109860.0,109850.0,0.08359788]
[1748243652329,1.95775065,109860.0,109850.0,0.07345716]
[1748243652541,1.95775065,109860.0,109850.0,0.06618598]
[1748243652743,2.01524065,109860.0,109850.0,0.06618598]
[1748243652953,0.00910307,109850.0,109840.0,0.002]
[1748243653115,0.20030897,109830.0,109820.0,0.002]
[1748243653299,1.71604443,109830.0,109820.0,0.002]
[1748243653507,1.72468858,109830.0,109820.0,0.002]
[1748243653712,1.75199158,109830.0,109820.0,0.002]
[1748243654103,1.76645423,109830.0,109820.0,0.002]
[1748243654506,1.85497574,109830.0,109820.0,0.002]
[1748243655134,1.8618226,109830.0,109820.0,0.002]
[1748243655740,1.8628226,109830.0,109820.0,0.002]
[1748243656237,1.8953226,109830.0,109820.0,0.002]
[1748243656437,1.95791001,109830.0,109820.0,0.002]
[1748243658143,1.94344736,109830.0,109820.0,0.002]
[1748243658947,2.30691787,109830.0,109820.0,0.002]
[1748243659166,0.21488631,109810.0,109800.0,0.032]
[1748243659368,1.57855923,109810.0,109800.0,0.032]
[1748243659589,1.60390726,109810.0,109800.0,0.032]
[1748243660048,1.61765992,109810.0,109800.0,0.032]
[1748243660347,1.641781,109810.0,109800.0,0.032]
[1748243660531,1.64227811,109810.0,109800.0,0.032]
[1748243661324,1.64127811,109810.0,109800.0,0.032]
[1748243661527,1.64027811,109810.0,109800.0,0.032]
[1748243661856,1.64227811,109810.0,109800.0,0.032]
[1748243662057,1.64527811,109810.0,109800.0,0.032]
[1748243662407,1.74485177,109810.0,109800.0,0.032]
[1748243662618,1.74485177,109810.0,109800.0,0.0947]
[1748243662818,1.36690433,109810.0,109800.0,0.0947]
[1748243663031,1.39739174,109810.0,109800.0,0.0947]
[1748243663224,1.03392123,109810.0,109800.0,0.0947]
[1748243663413,1.39739174,109810.0,109800.0,0.0947]
[1748243664215,1.07795174,109810.0,109800.0,0.07338229]
[1748243664624,1.39739174,109810.0,109800.0,0.07338229]
[1748243664924,0.71448123,109810.0,109800.0,0.07338229]
[1748243665115,1.03392123,109810.0,109800.0,0.07338229]
[1748243665319,1.39739174,109810.0,109800.0,0.07338229]
[1748243665771,1.0483908,109810.0,109800.0,0.01068229]
[1748243665974,1.43916831,109810.0,109800.0,0.01068229]
[1748243666642,1.42469874,109810.0,109800.0,0.01068229]
[1748243666859,1.55577752,109810.0,109800.0,0.01068229]
[1748243667344,0.90926802,109800.0,109790.0,0.0632]
[1748243667545,1.02416161,109800.0,109790.0,0.0632]
[1748243667961,1.4107437,109800.0,109790.0,0.0632]
[1748243668388,0.68380268,109800.0,109790.0,0.0632]
[1748243668589,0.54581493,109790.0,109780.0,0.0659]
[1748243668795,1.16969903,109790.0,109780.0,0.0659]
[1748243669359,1.19700903,109790.0,109780.0,0.0659]
[1748243669748,1.19700903,109790.0,109780.0,0.002]
[1748243670017,1.22012061,109790.0,109780.0,0.002]
[1748243670227,1.22012061,109790.0,109780.0,0.003]
[1748243670228,1.35924666,109790.0,109780.0,0.003]
[1748243670429,1.36609352,109790.0,109780.0,0.003]
[1748243670653,1.36609352,109790.0,109760.0,0.0184309]
[1748243670654,0.56180618,109770.0,109760.0,0.0184309]
[1748243670781,1.69777276,109770.0,109760.0,0.0184309]
[1748243670977,1.72312079,109770.0,109760.0,0.0184309]
[1748243671207,1.9762323,109770.0,109760.0,0.0184309]
[1748243671582,2.2870101,109770.0,109760.0,0.0184309]
[1748243671793,2.2870101,109770.0,109740.0,0.01683667]
[1748243671794,0.5618427,109750.0,109740.0,0.00606757]
[1748243672037,1.52666486,109750.0,109740.0,0.00606757]
[1748243672493,1.89013537,109750.0,109740.0,0.00606757]
[1748243672693,1.03815149,109750.0,109740.0,0.00606757]
[1748243672916,1.36451835,109750.0,109740.0,0.00606757]
[1748243673128,1.71987766,109750.0,109740.0,0.00606757]
[1748243673358,1.73505184,109750.0,109740.0,0.00606757]
[1748243673580,1.41553184,109750.0,109740.0,0.00606757]
[1748243673787,1.7418987,109750.0,109740.0,0.00606757]
[1748243674003,1.37842819,109750.0,109740.0,0.00606757]
[1748243674407,1.83276397,109750.0,109740.0,0.00606757]
[1748243674621,1.74324246,109750.0,109740.0,0.00606757]
[1748243676783,1.05890819,109750.0,109740.0,0.00606757]
[1748243677018,1.39293046,109750.0,109740.0,0.06966757]
[1748243677248,1.39293046,109750.0,109740.0,0.00606757]
[1748243677249,1.43814473,109750.0,109740.0,0.00606757]
[1748243677482,1.75089787,109750.0,109740.0,0.00606757]
[1748243677705,1.3860836,109750.0,109740.0,0.00606757]
[1748243677923,1.82294255,109750.0,109740.0,0.03816757]
[1748243678197,0.95629594,109750.0,109740.0,0.09192547]
[1748243678416,1.46180958,109750.0,109740.0,0.09192547]
[1748243678636,1.45269863,109750.0,109740.0,0.03725088]
[1748243678841,1.46723948,109750.0,109740.0,0.03725088]
[1748243678980,1.46723948,109750.0,109740.0,0.0326]
[1748243679631,1.55676099,109750.0,109740.0,0.0326]
[1748243680054,1.46723948,109750.0,109740.0,0.0326]
[1748243680260,1.83205375,109750.0,109740.0,0.0326]
[1748243680527,0.04187926,109730.0,109720.0,0.11865712]
[1748243680767,0.27702482,109730.0,109720.0,0.11865712]
[1748243681130,0.27702465,109730.0,109720.0,0.11865712]
[1748243681359,0.47842665,109730.0,109720.0,0.14865712]
[1748243681741,0.47892314,109730.0,109720.0,0.14865712]
[1748243681917,0.47892314,109730.0,109720.0,0.15065712]
[1748243682146,0.67030247,109730.0,109720.0,0.13954384]
[1748243682349,0.67941574,109730.0,109720.0,0.52232114]
[1748243682550,0.46981061,109730.0,109720.0,0.53243466]
[1748243682750,0.48803691,109730.0,109720.0,0.53226304]
[1748243683176,0.49885475,109730.0,109720.0,0.53526304]
[1748243683760,0.17917475,109730.0,109720.0,0.53226304]
[1748243683983,0.55211188,109730.0,109720.0,0.53226304]
[1748243684526,0.54299836,109730.0,109720.0,0.53226304]
[1748243684762,0.51567636,109730.0,109720.0,0.50583907]
[1748243685627,0.5247893,109730.0,109720.0,0.50583907]
[1748243686369,0.70705586,109730.0,109720.0,0.46938456]
[1748243686569,1.16192316,109730.0,109720.0,0.45761235]
[1748243687232,1.0810458,109730.0,109720.0,0.4484985]
[1748243687473,1.0810458,109730.0,109720.0,0.46672612]
[1748243687960,1.07193286,109730.0,109720.0,0.4484985]
[1748243688160,1.04004995,109730.0,109720.0,0.43938456]
[1748243688420,0.85778406,109730.0,109720.0,0.46672587]
[1748243688651,0.87961437,109730.0,109720.0,0.46640683]
[1748243688879,1.06187993,109730.0,109720.0,0.50285721]
[1748243689456,1.05276732,109730.0,109720.0,0.42995125]
[1748243689800,0.52348252,109730.0,109720.0,0.47552162]
[1748243689992,0.47785673,109730.0,109720.0,0.92433163]
[1748243690400,0.46331588,109730.0,109720.0,0.92433163]
[1748243690804,0.14359588,109730.0,109720.0,0.92433163]
[1748243691018,0.45479031,109730.0,109720.0,0.55951736]
[1748243691257,0.13507031,109730.0,109720.0,0.53818604]
[1748243691460,0.45479031,109730.0,109720.0,0.53818604]
[1748243691971,0.46390292,109730.0,109720.0,0.53818604]
[1748243692189,0.463903,109730.0,109720.0,0.53818604]
[1748243692420,0.46390292,109730.0,109720.0,0.53818604]
[1748243692789,0.47301569,109730.0,109720.0,0.53818604]
[1748243692991,0.46390292,109730.0,109720.0,0.53818604]
[1748243693217,0.47301561,109730.0,109720.0,0.53818604]
[1748243693410,0.15329561,109730.0,109720.0,0.53818604]
[1748243693624,0.47301561,109730.0,109720.0,0.47241759]
[1748243693773,0.4425282,109730.0,109720.0,0.53818604]
[1748243693991,0.4425282,109730.0,109720.0,0.47241759]
[1748243694234,0.4425282,109730.0,109720.0,0.53818604]
[1748243694563,0.47111566,109730.0,109720.0,0.53818604]
[1748243694985,0.16050868,109730.0,109720.0,0.53818604]
[1748243695182,0.4802286,109730.0,109720.0,0.53818604]
[1748243695665,0.48934171,109730.0,109720.0,0.53818604]
[1748243695883,0.52121693,109730.0,109720.0,0.53818604]
[1748243696093,0.52121743,109730.0,109720.0,0.53818604]
[1748243696495,0.52121793,109730.0,109720.0,0.52818604]
[1748243696860,0.51210507,109730.0,109720.0,0.51907252]
[1748243697102,0.68525769,109730.0,109720.0,0.51907252]
[1748243697262,0.71067165,109730.0,109720.0,0.51907252]
[1748243697439,0.38183863,109730.0,109720.0,0.50084481]
[1748243697647,0.70155863,109730.0,109720.0,0.45330415]
[1748243697875,0.70155863,109730.0,109720.0,0.52818621]
[1748243698073,0.70155863,109730.0,109720.0,0.5190726]
[1748243698270,0.70515045,109730.0,109720.0,0.45330415]
[1748243698473,0.69603734,109730.0,109720.0,0.36541993]
[1748243699137,0.72658677,109730.0,109720.0,0.36541993]
[1748243699480,0.72658677,109730.0,109720.0,0.34358129]
[1748243699481,1.41697877,109730.0,109720.0,0.34358129]
[1748243700137,1.41697877,109730.0,109720.0,0.31082141]
[1748243700571,1.0521645,109730.0,109720.0,0.31082141]
[1748243701040,1.0794885,109730.0,109720.0,0.31082141]
[1748243701449,1.09633792,109730.0,109720.0,0.31082141]
[1748243701754,1.52565219,109730.0,109720.0,0.31082141]
[1748243701955,1.58014219,109730.0,109720.0,0.31082141]
[1748243702197,1.52565219,109730.0,109720.0,0.31082141]
[1748243702770,1.55446604,109730.0,109720.0,0.31082141]
[1748243702976,1.52259073,109730.0,109720.0,0.31082141]
[1748243703596,1.52259073,109730.0,109720.0,0.28339427]
[1748243703796,1.36014131,109730.0,109720.0,0.28339427]
[1748243704006,1.50574131,109730.0,109720.0,0.28339427]
[1748243705085,1.50574131,109730.0,109720.0,0.27511468]
[1748243705287,1.50574131,109730.0,109720.0,0.23213468]
[1748243705288,1.47692746,109730.0,109720.0,0.23213468]
[1748243705493,1.47692746,109730.0,109720.0,0.22485509]
[1748243705736,1.57044897,109730.0,109720.0,0.2185755]
[1748243706155,1.57044897,109730.0,109720.0,0.21029591]
[1748243706412,1.48092746,109730.0,109720.0,0.21029591]
[1748243706612,1.52937159,109730.0,109720.0,0.21029591]
[1748243706973,1.53337159,109730.0,109720.0,0.21129591]
[1748243707169,1.53337159,109730.0,109720.0,0.17777159]
[1748243707509,1.56239765,109730.0,109720.0,0.17777159]
[1748243708146,1.19758338,109730.0,109720.0,0.17777159]
[1748243708302,1.56239765,109730.0,109720.0,0.17777159]
[1748243709200,0.61746892,109710.0,109700.0,0.002]
[1748243709400,1.28848271,109710.0,109700.0,0.002]
[1748243710214,1.28848271,109710.0,109670.0,0.0619]
[1748243710215,0.55512377,109680.0,109670.0,0.0619]
[1748243710566,0.55512377,109680.0,109670.0,0.0302]
[1748243710567,0.99228329,109680.0,109670.0,0.0302]
[1748243710777,0.99228329,109680.0,109660.0,0.15148234]
[1748243710778,0.19148336,109670.0,109660.0,0.031]
[1748243710914,0.30644288,109670.0,109660.0,0.0616]
[1748243711133,0.30544288,109670.0,109660.0,0.0616]
[1748243711540,0.30599829,109670.0,109660.0,0.0616]
[1748243711741,0.01154085,109660.0,109650.0,0.21703795]
[1748243711995,0.43580506,109660.0,109650.0,0.20791886]
[1748243712220,0.44928269,109660.0,109650.0,0.14409935]
[1748243712432,0.4401641,109660.0,109650.0,0.18969881]
[1748243712640,0.4401641,109660.0,109650.0,0.20793774]
[1748243712641,0.28910435,109660.0,109650.0,0.20793774]
[1748243712849,0.28962941,109660.0,109650.0,0.21393774]
[1748243713147,0.28050991,109660.0,109650.0,0.21393774]
[1748243713375,0.29674718,109660.0,109650.0,0.21393774]
[1748243713979,0.28910303,109660.0,109650.0,0.21593774]
[1748243714186,0.30364388,109660.0,109650.0,0.21593774]
[1748243714388,0.29452512,109660.0,109650.0,0.21593774]
[1748243714595,0.29352503,109660.0,109650.0,0.20993774]
[1748243714995,0.29452503,109660.0,109650.0,0.20993774]
[1748243715212,0.84172194,109660.0,109650.0,0.0184309]
[1748243715414,0.13264818,109660.0,109650.0,0.51074937]
[1748243715610,0.30566918,109660.0,109650.0,0.51074937]
[1748243715820,0.16910752,109660.0,109650.0,0.51074937]
[1748243716083,0.50962479,109660.0,109650.0,0.51074937]
[1748243716264,0.50465957,109660.0,109650.0,0.51074937]
[1748243716468,0.50565957,109660.0,109650.0,0.50874937]
[1748243716667,0.50465957,109660.0,109650.0,0.50874937]
[1748243716873,0.47830338,109660.0,109650.0,0.50874937]
[1748243717076,0.44184404,109660.0,109650.0,0.57451782]
[1748243717224,0.46008106,109660.0,109650.0,0.57451782]
[1748243717423,0.45096247,109660.0,109650.0,0.57451782]
[1748243718014,0.46008106,109660.0,109650.0,0.57451782]
[1748243718218,0.44660343,109660.0,109650.0,0.57451782]
[1748243718472,0.43748484,109660.0,109650.0,0.57451782]
[1748243718858,0.48627161,109660.0,109650.0,0.57451782]
[1748243719036,0.47715277,109660.0,109650.0,0.57451782]
[1748243719384,0.47715277,109660.0,109650.0,0.5470762]
[1748243719721,0.46803418,109660.0,109650.0,0.5470762]
[1748243720058,0.47715269,109660.0,109650.0,0.5470762]
[1748243720460,1.4278496,109660.0,109650.0,0.36478]
[1748243720734,1.45325214,109660.0,109650.0,0.36478]
[1748243721347,1.47276203,109660.0,109650.0,0.36478]
[1748243721556,1.57606694,109660.0,109650.0,0.36478]
[1748243722497,1.5652012,109660.0,109650.0,0.36478]
[1748243723243,1.11086542,109660.0,109650.0,0.36478]
[1748243723469,1.47567969,109660.0,109650.0,0.36478]
[1748243723676,1.47571969,109660.0,109650.0,0.36478]
[1748243724178,1.11090542,109660.0,109650.0,0.36478]
[1748243724306,1.47571969,109660.0,109650.0,0.36478]
[1748243724974,1.54450229,109660.0,109650.0,0.36478]
[1748243725307,1.47571969,109660.0,109650.0,0.36478]
[1748243725721,1.11090542,109660.0,109650.0,0.36478]
[1748243725920,1.47571969,109660.0,109650.0,0.36478]
[1748243726162,1.5173537,109660.0,109650.0,0.36478]
[1748243726860,1.4538937,109660.0,109650.0,0.33123224]
[1748243727539,1.46834827,109660.0,109650.0,0.33123224]
[1748243728250,1.14598827,109660.0,109650.0,0.33123224]
[1748243728414,1.46834827,109660.0,109650.0,0.33123224]
[1748243728633,1.42671426,109660.0,109650.0,0.33123224]
[1748243729068,1.06189999,109660.0,109650.0,0.44073178]
[1748243729216,1.04561654,109660.0,109650.0,0.39513224]
[1748243729413,1.04561654,109660.0,109650.0,0.44985162]
[1748243729614,0.86323456,109660.0,109650.0,0.46809063]
[1748243729819,0.87235365,109660.0,109650.0,0.45897121]
[1748243730060,0.69015796,109660.0,109650.0,0.45897121]
[1748243730259,0.84499663,109660.0,109650.0,0.46809055]
[1748243730488,0.83045554,109660.0,109650.0,0.46809055]
[1748243730690,0.83957413,109660.0,109650.0,0.46809055]
[1748243730929,0.86323374,109660.0,109650.0,0.46809055]
[1748243731074,0.51411498,109660.0,109650.0,0.46809055]
[1748243731615,0.51411498,109660.0,109650.0,0.28031214]
[1748243731816,0.34702924,109660.0,109650.0,0.28031214]
[1748243732105,0.48363081,109660.0,109650.0,0.25896639]
[1748243732391,0.45530656,109660.0,109650.0,0.32473484]
[1748243733352,0.44445499,109660.0,109650.0,0.32473484]
[1748243733794,0.41390556,109660.0,109650.0,0.32473484]
[1748243734208,0.26818556,109660.0,109650.0,0.68954911]
[1748243734391,0.41390556,109660.0,109650.0,0.68954911]
[1748243734727,0.41390556,109660.0,109650.0,0.32473484]
[1748243734937,0.41390556,109660.0,109650.0,0.68954911]
[1748243735140,0.09154556,109660.0,109650.0,0.68954911]
[1748243735339,0.23726556,109660.0,109650.0,0.68954911]
[1748243735544,0.23726556,109660.0,109650.0,0.69954911]
[1748243736446,0.23626556,109660.0,109650.0,0.69954911]
[1748243736701,0.09054556,109660.0,109650.0,0.69954911]
[1748243736863,0.09154556,109660.0,109650.0,1.04154911]
[1748243737270,0.09054556,109660.0,109650.0,1.04154911]
[1748243737675,0.00049619,109670.0,109660.0,0.54460111]
[1748243737963,0.00049619,109670.0,109660.0,1.51685538]
[1748243739568,0.5729253,109690.0,109680.0,0.12922102]
[1748243739783,0.66329751,109690.0,109680.0,0.73700908]
[1748243739990,0.68153046,109690.0,109680.0,0.73700916]
[1748243740189,0.68153046,109690.0,109680.0,0.74612601]
[1748243740395,0.68153029,109690.0,109680.0,0.74612601]
[1748243740808,0.6906468,109690.0,109680.0,0.74612601]
[1748243741009,0.8690868,109690.0,109680.0,0.74612601]
[1748243741457,0.88858252,109690.0,109680.0,0.74612601]
[1748243741673,0.88958252,109690.0,109680.0,0.74712601]
[1748243741875,0.82198016,109690.0,109680.0,0.74712601]
[1748243742897,0.49786016,109690.0,109680.0,0.74712601]
[1748243743100,0.82198016,109690.0,109680.0,0.74712601]
[1748243743733,0.81333601,109690.0,109680.0,0.74712601]
[1748243744472,0.81333601,109690.0,109680.0,0.72889239]
[1748243744674,0.81333601,109690.0,109680.0,0.71977513]
[1748243745018,1.04913965,109690.0,109680.0,0.71977513]
[1748243745620,1.04913965,109690.0,109680.0,0.69234078]
[1748243746223,1.04913965,109690.0,109680.0,0.70145804]
[1748243746380,1.0577838,109690.0,109680.0,0.69234078]
[1748243746584,1.04866745,109690.0,109680.0,0.68330549]
[1748243746793,1.04866745,109690.0,109680.0,0.67418806]
[1748243747008,1.04866745,109690.0,109680.0,0.68330549]
[1748243747178,1.08056745,109690.0,109680.0,0.69242283]
[1748243747609,1.08056745,109690.0,109680.0,0.747127]
[1748243748307,1.08056745,109690.0,109680.0,0.73800982]
[1748243748715,1.17008896,109690.0,109680.0,0.60841961]
[1748243748958,1.81778172,109690.0,109680.0,0.60841961]
[1748243749136,1.84322735,109690.0,109680.0,0.60841961]
[1748243749753,1.85871378,109690.0,109680.0,0.60741961]
[1748243749980,1.94823529,109690.0,109680.0,0.60741961]
[1748243750181,1.94923529,109690.0,109680.0,0.60741961]
[1748243750381,0.97021446,109690.0,109680.0,0.67124063]
[1748243750586,1.43516125,109690.0,109680.0,0.60741961]
[1748243750788,1.45704499,109690.0,109680.0,0.60741961]
[1748243750985,1.82185926,109690.0,109680.0,0.60741961]
[1748243751184,1.87847848,109690.0,109680.0,0.60741961]
[1748243751391,1.88816618,109690.0,109680.0,0.60741961]
[1748243751607,1.89116618,109690.0,109680.0,0.60741961]
[1748243751830,1.88816618,109690.0,109680.0,0.60741961]
[1748243752171,1.85301602,109690.0,109680.0,0.60941961]
[1748243753641,1.83854696,109690.0,109680.0,0.60941961]
[1748243754690,1.83854696,109690.0,109680.0,0.58807833]
[1748243759942,1.86588596,109690.0,109680.0,0.58807833]
[1748243760348,1.89491202,109690.0,109680.0,0.55530223]
[1748243760551,1.98443353,109690.0,109680.0,0.55530223]
[1748243760753,1.95540747,109690.0,109680.0,0.55530223]
[1748243762896,1.54176596,109690.0,109680.0,0.55530223]
[1748243763086,1.72024596,109690.0,109680.0,0.55530223]
[1748243763460,1.86592596,109690.0,109680.0,0.52786096]
[1748243764671,1.82429195,109690.0,109680.0,0.52786096]
[1748243770416,1.82429195,109690.0,109680.0,0.49508437]
[1748243771097,1.86592596,109690.0,109680.0,0.49508437]
[1748243771302,1.88031347,109690.0,109680.0,0.49508437]
[1748243771519,1.88031347,109690.0,109680.0,0.29488205]
[1748243771731,1.55615347,109690.0,109680.0,0.29488205]
[1748243771938,1.87623347,109690.0,109680.0,0.29488205]
[1748243774515,1.83459946,109690.0,109680.0,0.29488205]
[1748243775459,1.83459946,109690.0,109680.0,0.27353909]
[1748243775666,1.84144632,109690.0,109680.0,0.27353909]
[1748243775873,2.26075059,109690.0,109680.0,0.27353909]
[1748243776091,2.26194129,109690.0,109680.0,0.27353909]
[1748243776306,2.10941443,109690.0,109680.0,0.27353909]
[1748243776524,0.61626034,109660.0,109650.0,0.001]
[1748243776721,1.78219077,109660.0,109650.0,0.00149619]
[1748243776921,1.83363763,109660.0,109650.0,0.00149619]
[1748243777131,1.82679077,109660.0,109650.0,0.00149619]
[1748243777333,1.83363763,109660.0,109650.0,0.00149619]
[1748243777756,1.84128178,109660.0,109650.0,0.00149619]
[1748243777969,1.92980329,109660.0,109650.0,0.00149619]
[1748243778592,1.93280329,109660.0,109650.0,0.00249619]
[1748243779016,1.92595643,109660.0,109650.0,0.00249619]
[1748243779269,1.19513719,109660.0,109650.0,0.00249619]
[1748243779405,1.92495643,109660.0,109650.0,0.00149619]
[1748243779597,1.92895643,109660.0,109650.0,0.00149619]
[1748243780006,1.59939979,109660.0,109650.0,0.00149619]
[1748243780416,1.59439979,109660.0,109650.0,0.00149619]
[1748243780857,0.2243553,109620.0,109610.0,0.15408541]
[1748243781078,0.46069474,109620.0,109610.0,0.15408541]
[1748243781381,0.46069474,109620.0,109610.0,0.21985302]
[1748243781588,0.12361151,109620.0,109610.0,0.22897569]
[1748243781722,0.10907066,109620.0,109610.0,0.22897569]
[1748243781917,0.42919066,109620.0,109610.0,0.59459747]
[1748243782158,0.42968657,109620.0,109610.0,0.59459747]
[1748243782484,0.43168657,109620.0,109610.0,0.22997569]
[1748243782688,0.11156657,109620.0,109610.0,0.22997569]
[1748243782904,0.43168657,109620.0,109610.0,0.22997569]
[1748243783112,0.09204147,109620.0,109610.0,0.22997569]
[1748243783325,0.41220147,109620.0,109610.0,0.60559747]
[1748243783653,0.41420147,109620.0,109610.0,0.23097569]
[1748243783857,0.10858232,109620.0,109610.0,0.22185302]
[1748243784105,0.64767895,109620.0,109610.0,0.21273027]
[1748243784624,0.63452484,109620.0,109610.0,0.14886845]
[1748243784838,0.62640317,109620.0,109610.0,0.21273063]
[1748243785050,0.13713246,109620.0,109610.0,0.2218533]
[1748243785268,0.11643108,109620.0,109610.0,0.2218533]
[1748243785502,0.10189023,109620.0,109610.0,0.59747508]
[1748243785728,0.42205023,109620.0,109610.0,0.96238508]
[1748243785971,0.42205023,109620.0,109610.0,0.95238508]
[1748243786197,0.42205023,109620.0,109610.0,0.96238508]
[1748243786419,0.41116928,109620.0,109610.0,0.96238508]
[1748243786889,0.41116928,109620.0,109610.0,0.95238508]
[1748243786890,0.09100928,109620.0,109610.0,0.95238508]
[1748243787118,0.41116928,109620.0,109610.0,0.95238508]
[1748243787347,0.41116928,109620.0,109610.0,0.5767633]
[1748243787579,0.42029095,109620.0,109610.0,0.5767633]
[1748243787800,0.42571013,109620.0,109610.0,0.5767633]
[1748243788278,0.44395388,109620.0,109610.0,0.5767633]
[1748243788492,0.43483188,109620.0,109610.0,0.5463633]
[1748243788922,0.4348318,109620.0,109610.0,0.5463633]
[1748243789145,0.42571013,109620.0,109610.0,0.5776633]
[1748243789295,0.48848407,109620.0,109610.0,0.5776633]
[1748243790121,0.49760574,109620.0,109610.0,0.5776633]
[1748243790368,0.48848407,109620.0,109610.0,0.5776633]
[1748243790779,0.49760582,109620.0,109610.0,0.5776633]
[1748243791217,0.50672766,109620.0,109610.0,0.5776633]
[1748243791418,0.49760582,109620.0,109610.0,0.5776633]
[1748243791734,0.48848407,109620.0,109610.0,0.5776633]
[1748243791971,0.47394322,109620.0,109610.0,0.94328508]
[1748243793127,0.47394322,109620.0,109610.0,0.5776633]
[1748243793350,0.47394322,109620.0,109610.0,0.5706633]
[1748243793768,0.32822322,109620.0,109610.0,0.93628508]
[1748243794015,0.47398322,109620.0,109610.0,0.93628508]
[1748243794890,0.15378322,109620.0,109610.0,0.93628508]
[1748243795109,0.47398322,109620.0,109610.0,0.93628508]
[1748243796167,0.47398322,109620.0,109610.0,0.91493525]
[1748243796492,0.29954322,109620.0,109610.0,0.92493525]
[1748243796715,0.15378322,109620.0,109610.0,0.92493525]
[1748243796923,0.29954322,109620.0,109610.0,0.92493525]
[1748243797890,0.23676928,109620.0,109610.0,0.92493525]
[1748243798280,0.23676928,109620.0,109610.0,0.55931347]
[1748243798459,0.23676928,109620.0,109610.0,0.92493525]
[1748243798852,0.23676928,109620.0,109610.0,0.91493525]
[1748243799268,0.23676928,109620.0,109610.0,0.55931347]
[1748243799472,0.23676928,109620.0,109610.0,0.92493525]
[1748243800087,0.09100928,109620.0,109610.0,0.92493525]
[1748243800286,0.23672928,109620.0,109610.0,0.92493525]
[1748243800837,0.09100928,109620.0,109610.0,0.92493525]
[1748243801042,0.23672928,109620.0,109610.0,0.92493525]
[1748243802219,0.09100928,109620.0,109610.0,0.92493525]
[1748243802470,0.23672928,109620.0,109610.0,0.92493525]
[1748243806365,0.23672928,109620.0,109610.0,0.55931347]
[1748243806567,0.23672928,109620.0,109610.0,0.92493525]
[1748243808844,0.23672928,109620.0,109610.0,0.48354502]
[1748243809049,0.23672928,109620.0,109610.0,0.87128508]
[1748243810194,0.25625438,109620.0,109610.0,0.87128508]
[1748243810592,0.27449797,109620.0,109610.0,0.5056633]
[1748243810803,0.25625438,109620.0,109610.0,0.87128508]
[1748243811004,0.26537613,109620.0,109610.0,0.87128508]
[1748243811227,0.26537605,109620.0,109610.0,0.87128508]
[1748243811438,0.35373798,109620.0,109610.0,0.87128508]
[1748243812183,0.36285982,109620.0,109610.0,0.87128508]
[1748243812383,0.35373798,109620.0,109610.0,0.87128508]
[1748243812957,0.3628599,109620.0,109610.0,0.87128508]
[1748243813154,0.3719819,109620.0,109610.0,0.87128508]
[1748243813669,0.38110407,109620.0,109610.0,0.5056633]
[1748243813842,0.40408199,109620.0,109610.0,0.5056633]
[1748243814183,0.40408199,109620.0,109610.0,0.87119987]
[1748243814184,0.38583798,109620.0,109610.0,0.87119987]
[1748243814375,0.3949599,109620.0,109610.0,0.87119987]
[1748243814865,0.44250075,109620.0,109610.0,0.87119987]
[1748243815229,0.45700868,109620.0,109610.0,0.87119987]
[1748243815448,0.38380936,109620.0,109610.0,0.87119987]
[1748243815648,0.34258769,109620.0,109610.0,0.87119987]
[1748243816249,0.35170953,109620.0,109610.0,0.87119987]
[1748243816421,0.35170953,109620.0,109610.0,0.84984952]
[1748243816617,0.32804684,109620.0,109610.0,0.85897277]